[Event "*** SCC Grand Prix: Titled Tuesday Blitz"]
[Site "Chess.com"]
[Date "2020.07.21"]
[Round "2"]
[White "GregShahade"]
[Black "Jaka_Brilej"]
[Result "1-0"]
[WhiteElo "2705"]
[BlackElo "2356"]
[TimeControl "180+1"]
[EndTime "10:17:16 PDT"]
[Termination "GregShahade won on time"]

1. e4 {[%clk 0:03:00.9]} 1... c5 {[%clk 0:02:58.7]} 2. Nf3 {[%clk 0:03:01.2]}
2... Nc6 {[%clk 0:02:57.5]} 3. d4 {[%clk 0:03:01.8]} 3... cxd4 {[%clk
0:02:57.6]} 4. Nxd4 {[%clk 0:03:02.7]} 4... Nf6 {[%clk 0:02:58]} 5. Nc3 {[%clk
0:03:03.1]} 5... e5 {[%clk 0:02:57.8]} 6. Ndb5 {[%clk 0:03:03.2]} 6... d6 {[%clk
0:02:57.7]} 7. Bg5 {[%clk 0:03:03.8]} 7... a6 {[%clk 0:02:57.4]} 8. Na3 {[%clk
0:03:04.4]} 8... b5 {[%clk 0:02:57.4]} 9. Nd5 {[%clk 0:03:04.6]} 9... Be7 {[%clk
0:02:57.8]} 10. Bxf6 {[%clk 0:03:05.2]} 10... Bxf6 {[%clk 0:02:58.2]} 11. c4
{[%clk 0:03:05.9]} 11... b4 {[%clk 0:02:55.4]} 12. Nc2 {[%clk 0:03:06.1]} 12...
O-O {[%clk 0:02:55.3]} 13. g3 {[%clk 0:03:06.5]} 13... Bg5 {[%clk 0:02:53.5]}
14. Bg2 {[%clk 0:03:06.3]} 14... Rb8 {[%clk 0:02:53.2]} 15. b3 {[%clk
0:03:03.1]} 15... a5 {[%clk 0:02:53]} 16. O-O {[%clk 0:03:02.7]} 16... Be6
{[%clk 0:02:48.7]} 17. f4 {[%clk 0:03:02.4]} 17... Bh6 {[%clk 0:02:46.8]} 18.
Kh1 {[%clk 0:02:52.7]} 18... Bxd5 {[%clk 0:02:22.3]} 19. Qxd5 {[%clk 0:02:20.2]}
19... Ne7 {[%clk 0:02:21.3]} 20. Qd3 {[%clk 0:02:20.1]} 20... Qb6 {[%clk
0:02:16]} 21. Rad1 {[%clk 0:02:16.7]} 21... Rbd8 {[%clk 0:02:07.3]} 22. Ne3
{[%clk 0:02:16.8]} 22... exf4 {[%clk 0:01:37]} 23. gxf4 {[%clk 0:02:11.5]} 23...
Ng6 {[%clk 0:01:35.3]} 24. Nd5 {[%clk 0:02:09.5]} 24... Qc5 {[%clk 0:01:35.1]}
25. Qg3 {[%clk 0:02:05.5]} 25... f5 {[%clk 0:00:59.8]} 26. exf5 {[%clk
0:01:54.1]} 26... Rxf5 {[%clk 0:01:00.7]} 27. Be4 {[%clk 0:01:51.5]} 27... Rf7
{[%clk 0:01:00.5]} 28. Bxg6 {[%clk 0:01:48.3]} 28... hxg6 {[%clk 0:01:01.4]} 29.
Qxg6 {[%clk 0:01:48.3]} 29... Rdf8 {[%clk 0:01:01]} 30. f5 {[%clk 0:01:44.5]}
30... a4 {[%clk 0:00:24.6]} 31. Rd3 {[%clk 0:01:38]} 31... axb3 {[%clk
0:00:24.4]} 32. axb3 {[%clk 0:01:38.9]} 32... Qc8 {[%clk 0:00:23.6]} 33. Rh3
{[%clk 0:01:05.9]} 33... Kh8 {[%clk 0:00:04.1]} 34. Rh5 {[%clk 0:01:05.9]} 34...
Qe8 {[%clk 0:00:03]} 35. Rh4 {[%clk 0:00:39.3]} 35... Qd8 {[%clk 0:00:02.6]} 36.
f6 {[%clk 0:00:34.1]} 36... Kg8 {[%clk 0:00:02.1]} 37. Rxh6 {[%clk 0:00:33.3]}
1-0

[Event "*** SCC Grand Prix: Titled Tuesday Blitz"]
[Site "Chess.com"]
[Date "2020.07.21"]
[Round "2"]
[White "Flopezin"]
[Black "petincash"]
[Result "1-0"]
[WhiteElo "2108"]
[BlackElo "2348"]
[TimeControl "180+1"]
[EndTime "10:17:16 PDT"]
[Termination "Flopezin won on time"]

1. c4 {[%clk 0:03:00.9]} 1... e5 {[%clk 0:02:59]} 2. Nc3 {[%clk 0:03:00.5]} 2...
Nf6 {[%clk 0:02:59.6]} 3. Nf3 {[%clk 0:03:00.9]} 3... Nc6 {[%clk 0:02:58.8]} 4.
e4 {[%clk 0:03:01.1]} 4... d6 {[%clk 0:02:47]} 5. d4 {[%clk 0:03:00.6]} 5...
exd4 {[%clk 0:02:47.2]} 6. Nxd4 {[%clk 0:03:00.7]} 6... g6 {[%clk 0:02:47.3]} 7.
Be2 {[%clk 0:03:00.4]} 7... Nxd4 {[%clk 0:02:39.6]} 8. Qxd4 {[%clk 0:03:00.1]}
8... Bg7 {[%clk 0:02:40.3]} 9. Be3 {[%clk 0:02:41.3]} 9... O-O {[%clk
0:02:38.2]} 10. Qd1 {[%clk 0:02:41.1]} 10... Re8 {[%clk 0:02:34.1]} 11. f3
{[%clk 0:02:40]} 11... Nh5 {[%clk 0:01:44.4]} 12. Qd2 {[%clk 0:02:15.9]} 12...
f5 {[%clk 0:01:22.4]} 13. O-O-O {[%clk 0:01:47.4]} 13... fxe4 {[%clk 0:01:01.3]}
14. Nxe4 {[%clk 0:01:33.9]} 14... Nf6 {[%clk 0:00:52]} 15. Bd3 {[%clk 0:01:23]}
15... Bf5 {[%clk 0:00:29.9]} 16. Nf2 {[%clk 0:01:07.1]} 16... Qd7 {[%clk
0:00:24.6]} 17. Rhe1 {[%clk 0:01:03.9]} 17... Re7 {[%clk 0:00:22.6]} 18. g4
{[%clk 0:01:00]} 18... Bxd3 {[%clk 0:00:21.1]} 19. Nxd3 {[%clk 0:01:00.7]} 19...
Rae8 {[%clk 0:00:20.9]} 20. Bd4 {[%clk 0:00:57.4]} 20... Qc6 {[%clk 0:00:20]}
21. Qc3 {[%clk 0:00:43.1]} 21... Rxe1 {[%clk 0:00:11.9]} 22. Rxe1 {[%clk
0:00:41.5]} 22... Rxe1+ {[%clk 0:00:11]} 23. Nxe1 {[%clk 0:00:41.7]} 23... Ne8
{[%clk 0:00:09.1]} 24. Nc2 {[%clk 0:00:36.9]} 24... Kf7 {[%clk 0:00:05.2]} 25.
b3 {[%clk 0:00:31.2]} 25... b6 {[%clk 0:00:04.8]} 26. Qe3 {[%clk 0:00:30.5]}
26... Qd7 {[%clk 0:00:04.3]} 27. Bxg7 {[%clk 0:00:24.2]} 27... Nxg7 {[%clk
0:00:04]} 28. Qe4 {[%clk 0:00:22.7]} 28... c6 {[%clk 0:00:02.1]} 29. Ne3 {[%clk
0:00:22.2]} 1-0

[Event "*** SCC Grand Prix: Titled Tuesday Blitz"]
[Site "Chess.com"]
[Date "2020.07.21"]
[Round "2"]
[White "Harsha_Bharathakoti"]
[Black "Anna_ChessMate"]
[Result "1-0"]
[WhiteElo "2757"]
[BlackElo "2505"]
[TimeControl "180+1"]
[EndTime "10:17:20 PDT"]
[Termination "Harsha_Bharathakoti won on time"]

1. d4 {[%clk 0:03:00.9]} 1... d5 {[%clk 0:02:57.7]} 2. c4 {[%clk 0:03:01.1]}
2... c6 {[%clk 0:02:57.9]} 3. Nf3 {[%clk 0:03:01.3]} 3... Nf6 {[%clk 0:02:58]}
4. Nc3 {[%clk 0:03:01.5]} 4... dxc4 {[%clk 0:02:57.4]} 5. e4 {[%clk 0:03:01.6]}
5... b5 {[%clk 0:02:56.3]} 6. Be2 {[%clk 0:03:01.9]} 6... e6 {[%clk 0:02:55.1]}
7. O-O {[%clk 0:03:02.1]} 7... Be7 {[%clk 0:02:55.6]} 8. b3 {[%clk 0:02:59.2]}
8... cxb3 {[%clk 0:02:54.3]} 9. Qxb3 {[%clk 0:02:44]} 9... O-O {[%clk
0:02:53.9]} 10. e5 {[%clk 0:02:36.2]} 10... Nd5 {[%clk 0:02:53.6]} 11. Ne4
{[%clk 0:02:30.4]} 11... a5 {[%clk 0:02:52.3]} 12. a4 {[%clk 0:02:29.4]} 12...
b4 {[%clk 0:02:49.9]} 13. Rd1 {[%clk 0:02:20.5]} 13... Ba6 {[%clk 0:02:49.1]}
14. Bd3 {[%clk 0:02:18.2]} 14... Bxd3 {[%clk 0:02:46.7]} 15. Rxd3 {[%clk
0:02:19.1]} 15... Nd7 {[%clk 0:02:41.1]} 16. Nfg5 {[%clk 0:02:17.5]} 16... h6
{[%clk 0:02:38.1]} 17. Nh3 {[%clk 0:02:17]} 17... c5 {[%clk 0:02:36.4]} 18. Rg3
{[%clk 0:01:45.8]} 18... Kh8 {[%clk 0:02:31.3]} 19. Qf3 {[%clk 0:01:12.5]} 19...
Bh4 {[%clk 0:00:33.4]} 20. Rxg7 {[%clk 0:00:24.6]} 20... Kxg7 {[%clk 0:00:34.1]}
21. Qg4+ {[%clk 0:00:25]} 21... Kh7 {[%clk 0:00:29.8]} 22. Qh5 {[%clk
0:00:24.5]} 22... f5 {[%clk 0:00:13.5]} 23. Nhg5+ {[%clk 0:00:16.9]} 23... Bxg5
{[%clk 0:00:12.8]} 24. Nxg5+ {[%clk 0:00:17.6]} 24... Qxg5 {[%clk 0:00:06.6]}
25. Bxg5 {[%clk 0:00:18.5]} 1-0

[Event "*** SCC Grand Prix: Titled Tuesday Blitz"]
[Site "Chess.com"]
[Date "2020.07.21"]
[Round "2"]
[White "fabianvivasz"]
[Black "Harry_Rakkel"]
[Result "1-0"]
[WhiteElo "2294"]
[BlackElo "2539"]
[TimeControl "180+1"]
[EndTime "10:17:21 PDT"]
[Termination "fabianvivasz won by checkmate"]

1. e4 {[%clk 0:03:00.9]} 1... c5 {[%clk 0:02:54.8]} 2. Nf3 {[%clk 0:02:59.1]}
2... d6 {[%clk 0:02:53.3]} 3. d4 {[%clk 0:02:59.2]} 3... cxd4 {[%clk 0:02:52.6]}
4. Nxd4 {[%clk 0:03:00.1]} 4... Nf6 {[%clk 0:02:52.2]} 5. Nc3 {[%clk 0:03:00.7]}
5... a6 {[%clk 0:02:50.9]} 6. Bg5 {[%clk 0:03:01.1]} 6... e6 {[%clk 0:02:49.7]}
7. f4 {[%clk 0:03:00.3]} 7... Be7 {[%clk 0:02:49.4]} 8. Qf3 {[%clk 0:02:56.6]}
8... Qc7 {[%clk 0:02:49.3]} 9. O-O-O {[%clk 0:02:48.3]} 9... Nbd7 {[%clk
0:02:47.9]} 10. Be2 {[%clk 0:02:41.2]} 10... O-O {[%clk 0:02:37]} 11. g4 {[%clk
0:02:37.6]} 11... b5 {[%clk 0:02:36.1]} 12. Bxf6 {[%clk 0:02:08.3]} 12... Bxf6
{[%clk 0:02:34.6]} 13. g5 {[%clk 0:02:06.3]} 13... Bxd4 {[%clk 0:02:33.7]} 14.
Rxd4 {[%clk 0:02:07.2]} 14... Rb8 {[%clk 0:02:32.3]} 15. Rhd1 {[%clk 0:02:04.8]}
15... b4 {[%clk 0:02:19.1]} 16. Na4 {[%clk 0:01:59]} 16... Nc5 {[%clk
0:02:18.3]} 17. Nxc5 {[%clk 0:01:56.4]} 17... dxc5 {[%clk 0:02:18.1]} 18. Rd6
{[%clk 0:01:55.3]} 18... c4 {[%clk 0:02:17.2]} 19. Qe3 {[%clk 0:01:47.2]} 19...
Qa5 {[%clk 0:02:10.4]} 20. Kb1 {[%clk 0:01:44.9]} 20... c3 {[%clk 0:02:02.2]}
21. Qa7 {[%clk 0:01:34.4]} 21... Bb7 {[%clk 0:01:45.3]} 22. Rb6 {[%clk
0:01:18.8]} 22... cxb2 {[%clk 0:00:42.1]} 23. Rxb7 {[%clk 0:01:16.7]} 23... Rbc8
{[%clk 0:00:42.6]} 24. Qb6 {[%clk 0:01:06.8]} 24... Qa4 {[%clk 0:00:41.7]} 25.
Bd3 {[%clk 0:01:04.1]} 25... a5 {[%clk 0:00:39.2]} 26. Ra7 {[%clk 0:00:54.7]}
26... b3 {[%clk 0:00:38]} 27. Qxb3 {[%clk 0:00:50.3]} 27... Qd4 {[%clk
0:00:37.7]} 28. Rxa5 {[%clk 0:00:47.7]} 28... Qf2 {[%clk 0:00:38]} 29. f5 {[%clk
0:00:43]} 29... exf5 {[%clk 0:00:36.9]} 30. exf5 {[%clk 0:00:43.9]} 30... Qf3
{[%clk 0:00:36.6]} 31. Rf1 {[%clk 0:00:42.4]} 31... Qg2 {[%clk 0:00:35.1]} 32.
f6 {[%clk 0:00:41.9]} 32... g6 {[%clk 0:00:35.3]} 33. Ra7 {[%clk 0:00:39.6]}
33... Rcd8 {[%clk 0:00:34.1]} 34. a4 {[%clk 0:00:31.7]} 34... Qxg5 {[%clk
0:00:33.7]} 35. a5 {[%clk 0:00:30.1]} 35... Qc5 {[%clk 0:00:33.7]} 36. Qb6
{[%clk 0:00:27.5]} 36... Qa3 {[%clk 0:00:33.5]} 37. Qxb2 {[%clk 0:00:25.9]}
37... Rb8 {[%clk 0:00:33.6]} 38. Rb7 {[%clk 0:00:23]} 38... Rxb7 {[%clk
0:00:33.6]} 39. Qxb7 {[%clk 0:00:23.9]} 39... Qxa5 {[%clk 0:00:34.1]} 40. Bc4
{[%clk 0:00:21.3]} 40... Qe5 {[%clk 0:00:34.4]} 41. Rd1 {[%clk 0:00:19.4]} 41...
Qxh2 {[%clk 0:00:33.8]} 42. Qxf7+ {[%clk 0:00:13.7]} 42... Rxf7 {[%clk
0:00:32.1]} 43. Rd8# {[%clk 0:00:14.2]} 1-0

[Event "*** SCC Grand Prix: Titled Tuesday Blitz"]
[Site "Chess.com"]
[Date "2020.07.21"]
[Round "2"]
[White "Iskusnyh"]
[Black "bocah_sakit"]
[Result "0-1"]
[WhiteElo "2479"]
[BlackElo "2723"]
[TimeControl "180+1"]
[EndTime "10:17:23 PDT"]
[Termination "bocah_sakit won on time"]

1. d4 {[%clk 0:03:00.9]} 1... Nf6 {[%clk 0:02:59.8]} 2. c4 {[%clk 0:03:00.8]}
2... g6 {[%clk 0:03:00.5]} 3. g3 {[%clk 0:03:00.9]} 3... Bg7 {[%clk 0:03:01]} 4.
Bg2 {[%clk 0:03:01.5]} 4... O-O {[%clk 0:03:01.9]} 5. Nc3 {[%clk 0:03:01.3]}
5... d6 {[%clk 0:03:02.8]} 6. Nf3 {[%clk 0:03:01]} 6... Nc6 {[%clk 0:03:03.3]}
7. Bf4 {[%clk 0:02:59]} 7... Bg4 {[%clk 0:02:57.9]} 8. d5 {[%clk 0:02:57.5]}
8... Nb8 {[%clk 0:02:46]} 9. O-O {[%clk 0:02:53.4]} 9... a5 {[%clk 0:02:28.9]}
10. h3 {[%clk 0:02:47.9]} 10... Bd7 {[%clk 0:02:28.6]} 11. e4 {[%clk 0:02:44.9]}
11... Na6 {[%clk 0:02:26.9]} 12. e5 {[%clk 0:02:43.8]} 12... Nh5 {[%clk
0:02:25.2]} 13. Qd2 {[%clk 0:01:47.6]} 13... Nxf4 {[%clk 0:02:22.5]} 14. Qxf4
{[%clk 0:01:47.3]} 14... Nc5 {[%clk 0:02:23]} 15. Rad1 {[%clk 0:01:44]} 15... h6
{[%clk 0:02:16.9]} 16. Rfe1 {[%clk 0:01:41.2]} 16... Bf5 {[%clk 0:02:16.2]} 17.
Qe3 {[%clk 0:01:32.4]} 17... Qc8 {[%clk 0:02:13.5]} 18. g4 {[%clk 0:01:26.7]}
18... Bd7 {[%clk 0:02:11.4]} 19. Ne4 {[%clk 0:01:21.2]} 19... b6 {[%clk
0:01:47.5]} 20. Nxc5 {[%clk 0:01:17.5]} 20... bxc5 {[%clk 0:01:46.3]} 21. Qe4
{[%clk 0:01:10.9]} 21... Rb8 {[%clk 0:01:44.3]} 22. b3 {[%clk 0:01:09.9]} 22...
a4 {[%clk 0:01:44.4]} 23. Rd3 {[%clk 0:00:57.2]} 23... axb3 {[%clk 0:01:44.2]}
24. axb3 {[%clk 0:00:57.6]} 24... Kh7 {[%clk 0:01:38.4]} 25. e6 {[%clk
0:00:50.1]} 25... fxe6 {[%clk 0:01:38.1]} 26. dxe6 {[%clk 0:00:41.4]} 26... Be8
{[%clk 0:01:38.3]} 27. Nh4 {[%clk 0:00:36.8]} 27... Bf6 {[%clk 0:01:37.6]} 28.
Nf3 {[%clk 0:00:31.8]} 28... Rb6 {[%clk 0:01:36.5]} 29. Rde3 {[%clk 0:00:25.5]}
29... Bc6 {[%clk 0:01:34.9]} 30. Qd3 {[%clk 0:00:25.4]} 30... Qb7 {[%clk
0:01:34.7]} 31. R1e2 {[%clk 0:00:20.1]} 31... Rb8 {[%clk 0:01:34.6]} 32. Ne1
{[%clk 0:00:18.9]} 32... Bxg2 {[%clk 0:01:33.9]} 33. Nxg2 {[%clk 0:00:18.5]}
33... Rxb3 {[%clk 0:01:34.5]} 34. Qc2 {[%clk 0:00:18.3]} 34... Rxe3 {[%clk
0:01:34.1]} 35. Rxe3 {[%clk 0:00:17]} 35... Qb1+ {[%clk 0:01:34.1]} 36. Qxb1
{[%clk 0:00:17]} 36... Rxb1+ {[%clk 0:01:35]} 37. Re1 {[%clk 0:00:16.1]} 37...
Rb4 {[%clk 0:01:34.2]} 38. Ne3 {[%clk 0:00:15.3]} 38... Bd4 {[%clk 0:01:33.3]}
39. Nd5 {[%clk 0:00:15]} 39... Rxc4 {[%clk 0:01:29.1]} 40. Nxe7 {[%clk
0:00:14.8]} 40... Rc2 {[%clk 0:01:28.5]} 41. Re4 {[%clk 0:00:12.9]} 41... Bxf2+
{[%clk 0:01:26.4]} 42. Kf1 {[%clk 0:00:13.1]} 42... Bh4 {[%clk 0:01:26.7]} 43.
Nc6 {[%clk 0:00:11.5]} 43... Rf2+ {[%clk 0:01:23.3]} 44. Kg1 {[%clk 0:00:10.6]}
44... Rf8 {[%clk 0:01:23]} 45. Kg2 {[%clk 0:00:09.1]} 45... Kg7 {[%clk
0:01:22.1]} 46. e7 {[%clk 0:00:06.8]} 46... Re8 {[%clk 0:01:21.7]} 47. Kf3
{[%clk 0:00:04.4]} 47... d5 {[%clk 0:01:18.6]} 48. Re5 {[%clk 0:00:04.1]} 48...
d4 {[%clk 0:01:13.8]} 49. Rxc5 {[%clk 0:00:03.8]} 49... Bxe7 {[%clk 0:01:13.9]}
50. Rd5 {[%clk 0:00:03.1]} 50... Bf6 {[%clk 0:01:12.2]} 51. Nxd4 {[%clk
0:00:02.2]} 51... Kf7 {[%clk 0:01:11]} 0-1

[Event "*** SCC Grand Prix: Titled Tuesday Blitz"]
[Site "Chess.com"]
[Date "2020.07.21"]
[Round "2"]
[White "Chess_Boxer123"]
[Black "Gabix_94"]
[Result "0-1"]
[WhiteElo "2568"]
[BlackElo "2882"]
[TimeControl "180+1"]
[EndTime "10:17:24 PDT"]
[Termination "Gabix_94 won by checkmate"]

1. d4 {[%clk 0:03:00.9]} 1... Nf6 {[%clk 0:02:58.2]} 2. c4 {[%clk 0:02:51.5]}
2... c5 {[%clk 0:02:57.3]} 3. d5 {[%clk 0:02:51.6]} 3... e6 {[%clk 0:02:57.3]}
4. Nc3 {[%clk 0:02:51.3]} 4... exd5 {[%clk 0:02:57.8]} 5. cxd5 {[%clk
0:02:52.2]} 5... d6 {[%clk 0:02:58.4]} 6. Nf3 {[%clk 0:02:50.9]} 6... g6 {[%clk
0:02:58.3]} 7. Nd2 {[%clk 0:02:51.2]} 7... Bg7 {[%clk 0:02:57.6]} 8. e4 {[%clk
0:02:51.6]} 8... O-O {[%clk 0:02:58]} 9. Be2 {[%clk 0:02:51.8]} 9... Re8 {[%clk
0:02:58.1]} 10. O-O {[%clk 0:02:51.2]} 10... Na6 {[%clk 0:02:58.6]} 11. f3
{[%clk 0:02:48.2]} 11... Nc7 {[%clk 0:02:56.4]} 12. a4 {[%clk 0:02:48.3]} 12...
Nd7 {[%clk 0:02:55.1]} 13. Kh1 {[%clk 0:02:48.1]} 13... Rb8 {[%clk 0:02:47.2]}
14. Nc4 {[%clk 0:02:47.7]} 14... Ne5 {[%clk 0:02:43.1]} 15. Na3 {[%clk
0:02:34.3]} 15... f5 {[%clk 0:02:36.1]} 16. f4 {[%clk 0:02:30.5]} 16... Nf7
{[%clk 0:02:35.3]} 17. exf5 {[%clk 0:02:20.6]} 17... Bxf5 {[%clk 0:02:31.9]} 18.
Nab5 {[%clk 0:02:14.2]} 18... a6 {[%clk 0:02:30.8]} 19. Na3 {[%clk 0:02:07.2]}
19... Qh4 {[%clk 0:02:23]} 20. a5 {[%clk 0:01:54.1]} 20... b5 {[%clk 0:02:16.5]}
21. axb6 {[%clk 0:01:53.4]} 21... Rxb6 {[%clk 0:02:17.1]} 22. Nc4 {[%clk
0:01:53.9]} 22... Rb4 {[%clk 0:02:15.1]} 23. Ne3 {[%clk 0:01:43.8]} 23... Bd7
{[%clk 0:02:11.3]} 24. g3 {[%clk 0:01:15.8]} 24... Qd8 {[%clk 0:02:10]} 25. Bf3
{[%clk 0:01:14.1]} 25... Nh6 {[%clk 0:02:06.5]} 26. Nc2 {[%clk 0:01:09.4]} 26...
Rb6 {[%clk 0:02:04.7]} 27. Na4 {[%clk 0:01:00.2]} 27... Rb8 {[%clk 0:02:03.8]}
28. Ra3 {[%clk 0:00:58.6]} 28... Nf5 {[%clk 0:02:02.9]} 29. Nc3 {[%clk
0:00:52.9]} 29... Nb5 {[%clk 0:01:58.8]} 30. Nxb5 {[%clk 0:00:51.3]} 30... Bxb5
{[%clk 0:01:57.1]} 31. Re1 {[%clk 0:00:50.5]} 31... Qd7 {[%clk 0:01:54.6]} 32.
Re6 {[%clk 0:00:49]} 32... Qb7 {[%clk 0:01:40]} 33. Ne3 {[%clk 0:00:43.5]} 33...
Nd4 {[%clk 0:01:37.7]} 34. Rxe8+ {[%clk 0:00:42.6]} 34... Rxe8 {[%clk
0:01:38.6]} 35. Bg2 {[%clk 0:00:42.9]} 35... Be2 {[%clk 0:01:36.2]} 36. Qa4
{[%clk 0:00:34.9]} 36... Qe7 {[%clk 0:01:31.3]} 37. Bd2 {[%clk 0:00:17.2]} 37...
Bb5 {[%clk 0:01:31]} 38. Qd1 {[%clk 0:00:16.7]} 38... Qd7 {[%clk 0:01:25.2]} 39.
b3 {[%clk 0:00:15.5]} 39... Nf5 {[%clk 0:01:24.5]} 40. Nc4 {[%clk 0:00:15.6]}
40... Bd4 {[%clk 0:01:21.7]} 41. Ra2 {[%clk 0:00:13.4]} 41... h5 {[%clk
0:01:20]} 42. Be1 {[%clk 0:00:10]} 42... Qe7 {[%clk 0:01:18.9]} 43. Bf2 {[%clk
0:00:08.9]} 43... Bxf2 {[%clk 0:01:18]} 44. Rxf2 {[%clk 0:00:09.8]} 44... Kh7
{[%clk 0:01:18]} 45. Bf3 {[%clk 0:00:08.6]} 45... Nd4 {[%clk 0:01:15.6]} 46. Kg2
{[%clk 0:00:09]} 46... a5 {[%clk 0:01:11.5]} 47. Nd2 {[%clk 0:00:04.6]} 47...
Qe3 {[%clk 0:01:09.9]} 48. Be4 {[%clk 0:00:04.4]} 48... Rxe4 {[%clk 0:01:08.9]}
49. Nxe4 {[%clk 0:00:04.9]} 49... Qxe4+ {[%clk 0:01:09.8]} 50. Kh3 {[%clk
0:00:05.7]} 50... Bd7+ {[%clk 0:01:09]} 51. Kh4 {[%clk 0:00:06.2]} 51... Nf5+
{[%clk 0:01:08.3]} 52. Kg5 {[%clk 0:00:06.7]} 52... Qe7# {[%clk 0:01:08.3]} 0-1

[Event "*** SCC Grand Prix: Titled Tuesday Blitz"]
[Site "Chess.com"]
[Date "2020.07.21"]
[Round "2"]
[White "Josip_buje"]
[Black "m_ezat"]
[Result "1/2-1/2"]
[WhiteElo "2287"]
[BlackElo "2561"]
[TimeControl "180+1"]
[EndTime "10:17:28 PDT"]
[Termination "Game drawn by repetition"]

1. d4 {[%clk 0:03:00.9]} 1... Nf6 {[%clk 0:02:58.9]} 2. Nf3 {[%clk 0:03:01.2]}
2... g6 {[%clk 0:02:59.5]} 3. Bg5 {[%clk 0:03:01.4]} 3... Ne4 {[%clk 0:02:58.7]}
4. Bh4 {[%clk 0:03:00.5]} 4... Bg7 {[%clk 0:02:58.3]} 5. e3 {[%clk 0:03:01]}
5... O-O {[%clk 0:02:58.5]} 6. Nbd2 {[%clk 0:03:01.2]} 6... Nxd2 {[%clk
0:02:57.2]} 7. Qxd2 {[%clk 0:03:00.5]} 7... c5 {[%clk 0:02:57.9]} 8. c3 {[%clk
0:02:59.1]} 8... cxd4 {[%clk 0:02:55.9]} 9. exd4 {[%clk 0:02:58.7]} 9... d5
{[%clk 0:02:55.1]} 10. h3 {[%clk 0:02:57.8]} 10... Nc6 {[%clk 0:02:55.4]} 11.
Bd3 {[%clk 0:02:57.5]} 11... Qc7 {[%clk 0:02:40.8]} 12. Bg3 {[%clk 0:02:55.5]}
12... Qd8 {[%clk 0:02:40.6]} 13. O-O {[%clk 0:02:54.7]} 13... f6 {[%clk
0:02:36.7]} 14. Rfe1 {[%clk 0:02:53.9]} 14... Re8 {[%clk 0:02:36.5]} 15. Rad1
{[%clk 0:02:33.3]} 15... e5 {[%clk 0:02:25.7]} 16. dxe5 {[%clk 0:02:32.8]} 16...
fxe5 {[%clk 0:02:26.3]} 17. Bb5 {[%clk 0:02:33.3]} 17... e4 {[%clk 0:02:16.5]}
18. Nd4 {[%clk 0:02:32.5]} 18... Bxd4 {[%clk 0:01:58.9]} 19. cxd4 {[%clk
0:02:33.4]} 19... Bd7 {[%clk 0:01:56.6]} 20. Bxc6 {[%clk 0:02:31.9]} 20... bxc6
{[%clk 0:01:54.6]} 21. Be5 {[%clk 0:02:32.2]} 21... Qh4 {[%clk 0:01:53.3]} 22.
Re3 {[%clk 0:02:25.8]} 22... Rf8 {[%clk 0:01:43.6]} 23. Rb3 {[%clk 0:02:24.6]}
23... Rf7 {[%clk 0:01:40.3]} 24. Rb7 {[%clk 0:02:10.5]} 24... Raf8 {[%clk
0:01:15.2]} 25. Bg3 {[%clk 0:02:09.1]} 25... Qh5 {[%clk 0:01:14.5]} 26. Rxa7
{[%clk 0:02:07.2]} 26... Re8 {[%clk 0:00:21.5]} 27. Re1 {[%clk 0:02:06.3]} 27...
Qf5 {[%clk 0:00:18.3]} 28. b4 {[%clk 0:02:01.8]} 28... g5 {[%clk 0:00:14.6]} 29.
a4 {[%clk 0:01:57.7]} 29... h5 {[%clk 0:00:14.6]} 30. a5 {[%clk 0:01:49]} 30...
h4 {[%clk 0:00:14.2]} 31. Be5 {[%clk 0:01:48.8]} 31... g4 {[%clk 0:00:12.8]} 32.
hxg4 {[%clk 0:01:43.9]} 32... Qxg4 {[%clk 0:00:13.1]} 33. Qh6 {[%clk 0:01:44]}
33... Rh7 {[%clk 0:00:13.2]} 34. Qf4 {[%clk 0:01:37.8]} 34... Qg6 {[%clk
0:00:12.2]} 35. Re3 {[%clk 0:01:32.2]} 35... Rf8 {[%clk 0:00:12.4]} 36. Qh2
{[%clk 0:01:11.8]} 36... Qf5 {[%clk 0:00:12.8]} 37. g3 {[%clk 0:01:08.2]} 37...
Qg4 {[%clk 0:00:11.1]} 38. Rxd7 {[%clk 0:00:44.5]} 38... Qd1+ {[%clk 0:00:10.1]}
39. Kg2 {[%clk 0:00:43.8]} 39... h3+ {[%clk 0:00:10.3]} 40. Qxh3 {[%clk
0:00:42.5]} 40... Rxh3 {[%clk 0:00:10.8]} 41. Rg7+ {[%clk 0:00:39.6]} 41... Kh8
{[%clk 0:00:11.4]} 42. Rf7+ {[%clk 0:00:38.8]} 42... Kg8 {[%clk 0:00:11.2]} 43.
Rg7+ {[%clk 0:00:38.9]} 43... Kh8 {[%clk 0:00:11.8]} 44. Rf7+ {[%clk 0:00:39.1]}
44... Kg8 {[%clk 0:00:12]} 45. Rg7+ {[%clk 0:00:39.2]} 1/2-1/2

[Event "*** SCC Grand Prix: Titled Tuesday Blitz"]
[Site "Chess.com"]
[Date "2020.07.21"]
[Round "2"]
[White "Happy1712Drummer"]
[Black "VladimirBugayev"]
[Result "1-0"]
[WhiteElo "2418"]
[BlackElo "2151"]
[TimeControl "180+1"]
[EndTime "10:17:28 PDT"]
[Termination "Happy1712Drummer won on time"]

1. d4 {[%clk 0:03:00.9]} 1... d5 {[%clk 0:02:59.1]} 2. Nf3 {[%clk 0:02:59.4]}
2... Nf6 {[%clk 0:02:58.1]} 3. c4 {[%clk 0:02:54]} 3... c6 {[%clk 0:02:58.1]} 4.
Qc2 {[%clk 0:02:48.6]} 4... e6 {[%clk 0:02:56.4]} 5. g3 {[%clk 0:02:40.2]} 5...
Nbd7 {[%clk 0:02:50.6]} 6. Bg2 {[%clk 0:02:37.5]} 6... Ne4 {[%clk 0:02:39.8]} 7.
Nfd2 {[%clk 0:02:26.9]} 7... Nd6 {[%clk 0:02:15.5]} 8. O-O {[%clk 0:02:18.5]}
8... Be7 {[%clk 0:02:14.7]} 9. b3 {[%clk 0:02:11.5]} 9... O-O {[%clk 0:02:08.8]}
10. e4 {[%clk 0:02:07.3]} 10... dxe4 {[%clk 0:02:06.3]} 11. Nxe4 {[%clk
0:01:03.9]} 11... Nxe4 {[%clk 0:02:01.9]} 12. Qxe4 {[%clk 0:01:04.8]} 12... Nf6
{[%clk 0:01:36.8]} 13. Qe3 {[%clk 0:01:03.9]} 13... Ng4 {[%clk 0:01:27.1]} 14.
Qf4 {[%clk 0:01:02.3]} 14... Bf6 {[%clk 0:00:59.7]} 15. Rd1 {[%clk 0:00:24.2]}
15... e5 {[%clk 0:00:56.8]} 16. Qf3 {[%clk 0:00:18.7]} 16... exd4 {[%clk
0:00:54.3]} 17. Bf4 {[%clk 0:00:16.8]} 17... Ne5 {[%clk 0:00:47.3]} 18. Bxe5
{[%clk 0:00:15.9]} 18... Bxe5 {[%clk 0:00:47.5]} 19. Nd2 {[%clk 0:00:16.4]}
19... c5 {[%clk 0:00:32.6]} 20. Ne4 {[%clk 0:00:15.1]} 20... Bd6 {[%clk
0:00:32.6]} 21. Qh5 {[%clk 0:00:13.3]} 21... f5 {[%clk 0:00:23.6]} 22. Nxd6
{[%clk 0:00:13.4]} 22... Qxd6 {[%clk 0:00:23.7]} 23. b4 {[%clk 0:00:14]} 23...
Be6 {[%clk 0:00:19.9]} 24. bxc5 {[%clk 0:00:13.1]} 24... Qxc5 {[%clk 0:00:19.6]}
25. Bxb7 {[%clk 0:00:13.7]} 25... Rab8 {[%clk 0:00:19.2]} 26. Bf3 {[%clk
0:00:13.7]} 26... Rb2 {[%clk 0:00:16.4]} 27. Qh4 {[%clk 0:00:14.6]} 27... d3
{[%clk 0:00:14.6]} 28. Rf1 {[%clk 0:00:10.7]} 28... Qxc4 {[%clk 0:00:09.7]} 29.
Qe7 {[%clk 0:00:09.6]} 29... Bd5 {[%clk 0:00:05]} 30. Rac1 {[%clk 0:00:09.3]}
30... Rc2 {[%clk 0:00:01.7]} 31. Bxd5+ {[%clk 0:00:09]} 31... Qxd5 {[%clk
0:00:01.2]} 32. Qxa7 {[%clk 0:00:09.8]} 1-0